[Event "*** Titled Tuesday Blitz"]
[Site "Chess.com"]
[Date "2020.11.03"]
[Round "7"]
[White "HanSchut"]
[Black "AurumO"]
[Result "1-0"]
[WhiteElo "2202"]
[BlackElo "1960"]
[TimeControl "180+1"]
[EndTime "11:21:01 PST"]
[Termination "HanSchut won by checkmate"]

1. e4 {[%clk 0:03:00.9]} 1... c5 {[%clk 0:02:58.5]} 2. Nf3 {[%clk 0:03:01.1]}
2... Nc6 {[%clk 0:02:58.2]} 3. d4 {[%clk 0:03:01.1]} 3... cxd4 {[%clk
0:02:59.1]} 4. Nxd4 {[%clk 0:03:02]} 4... g6 {[%clk 0:03:00]} 5. c4 {[%clk
0:03:02]} 5... Nf6 {[%clk 0:02:58.8]} 6. Nc3 {[%clk 0:03:01.6]} 6... Nxd4 {[%clk
0:02:58.2]} 7. Qxd4 {[%clk 0:03:01.1]} 7... d6 {[%clk 0:02:58.8]} 8. Be2 {[%clk
0:02:57.1]} 8... Bg7 {[%clk 0:02:59.3]} 9. Be3 {[%clk 0:02:57]} 9... O-O {[%clk
0:02:59.9]} 10. Qd2 {[%clk 0:02:56.3]} 10... a5 {[%clk 0:02:58.3]} 11. O-O
{[%clk 0:02:45.1]} 11... a4 {[%clk 0:02:58.5]} 12. f3 {[%clk 0:02:35.5]} 12...
Qa5 {[%clk 0:02:48.2]} 13. b4 {[%clk 0:02:33.5]} 13... Qxb4 {[%clk 0:02:07.6]}
14. Rab1 {[%clk 0:02:32.6]} 14... Qa5 {[%clk 0:02:05.8]} 15. Rb5 {[%clk
0:01:52.8]} 15... Qd8 {[%clk 0:02:04.9]} 16. Bb6 {[%clk 0:01:44.2]} 16... Qe8
{[%clk 0:02:02.3]} 17. Bd1 {[%clk 0:01:36.4]} 17... Bd7 {[%clk 0:02:02.6]} 18.
Rb1 {[%clk 0:01:25.5]} 18... Bc6 {[%clk 0:02:02.2]} 19. Nd5 {[%clk 0:01:24.3]}
19... Bxd5 {[%clk 0:01:59]} 20. cxd5 {[%clk 0:01:22.3]} 20... Nd7 {[%clk
0:01:57]} 21. Be3 {[%clk 0:01:20]} 21... Qc8 {[%clk 0:01:45.6]} 22. Be2 {[%clk
0:01:18.6]} 22... Nc5 {[%clk 0:01:35]} 23. Rfc1 {[%clk 0:01:18.4]} 23... Qc7
{[%clk 0:01:27.6]} 24. Qb4 {[%clk 0:01:14.2]} 24... Rfb8 {[%clk 0:01:08.3]} 25.
Kf1 {[%clk 0:01:14.1]} 25... b6 {[%clk 0:00:58.2]} 26. Bb5 {[%clk 0:01:05.7]}
26... Ra5 {[%clk 0:00:42.9]} 27. Bxa4 {[%clk 0:00:46.3]} 27... Qa7 {[%clk
0:00:12.6]} 28. Bc2 {[%clk 0:00:14.2]} 28... Rxa2 {[%clk 0:00:11.7]} 29. Rb2
{[%clk 0:00:11.2]} 29... Rxb2 {[%clk 0:00:09.4]} 30. Qc4 {[%clk 0:00:11.3]}
30... Ra2 {[%clk 0:00:06.5]} 31. h4 {[%clk 0:00:11.4]} 31... Ra1 {[%clk
0:00:06.2]} 32. Rxa1 {[%clk 0:00:11.8]} 32... Qxa1+ {[%clk 0:00:06.8]} 33. Kf2
{[%clk 0:00:12.7]} 33... Qb2 {[%clk 0:00:06.5]} 34. Kg3 {[%clk 0:00:12.2]} 34...
Ra8 {[%clk 0:00:06.5]} 35. h5 {[%clk 0:00:11.7]} 35... Ra2 {[%clk 0:00:06.8]}
36. h6 {[%clk 0:00:11.4]} 36... Bf6 {[%clk 0:00:05.8]} 37. e5 {[%clk 0:00:08.9]}
37... Bxe5+ {[%clk 0:00:05.8]} 38. f4 {[%clk 0:00:08.9]} 38... f5 {[%clk
0:00:06.7]} 39. fxe5 {[%clk 0:00:09.1]} 39... dxe5 {[%clk 0:00:07.2]} 40. Bg5
{[%clk 0:00:09.4]} 40... f4+ {[%clk 0:00:07]} 41. Kg4 {[%clk 0:00:09.3]} 41...
Qxc2 {[%clk 0:00:07.3]} 42. Qb5 {[%clk 0:00:08.6]} 42... e6 {[%clk 0:00:07.9]}
43. Qe8# {[%clk 0:00:08.3]} 1-0

[Event "*** Titled Tuesday Blitz"]
[Site "Chess.com"]
[Date "2020.11.03"]
[Round "7"]
[White "annamaja"]
[Black "Shuvalov"]
[Result "1-0"]
[WhiteElo "2305"]
[BlackElo "2416"]
[TimeControl "180+1"]
[EndTime "11:21:03 PST"]
[Termination "annamaja won by checkmate"]

1. e4 {[%clk 0:03:00.9]} 1... e6 {[%clk 0:02:54]} 2. d4 {[%clk 0:03:00.8]} 2...
d5 {[%clk 0:02:53.8]} 3. exd5 {[%clk 0:03:01.5]} 3... exd5 {[%clk 0:02:53.6]} 4.
c4 {[%clk 0:03:02.4]} 4... Nf6 {[%clk 0:02:52.9]} 5. Nc3 {[%clk 0:03:03.1]} 5...
Be7 {[%clk 0:02:52.6]} 6. Bd3 {[%clk 0:03:03.1]} 6... dxc4 {[%clk 0:02:52]} 7.
Bxc4 {[%clk 0:03:04]} 7... O-O {[%clk 0:02:52.4]} 8. Nge2 {[%clk 0:03:04.6]}
8... Nbd7 {[%clk 0:02:52.4]} 9. O-O {[%clk 0:03:05.3]} 9... Nb6 {[%clk
0:02:52.5]} 10. Bb3 {[%clk 0:03:05.9]} 10... c6 {[%clk 0:02:52.1]} 11. Bg5
{[%clk 0:03:06.1]} 11... Nfd5 {[%clk 0:02:50.5]} 12. Bxe7 {[%clk 0:03:04.9]}
12... Nxe7 {[%clk 0:02:51.4]} 13. Ng3 {[%clk 0:03:00.9]} 13... Nbd5 {[%clk
0:02:45.6]} 14. Bc2 {[%clk 0:02:59.7]} 14... Nf4 {[%clk 0:02:30.1]} 15. Re1
{[%clk 0:02:45.5]} 15... Ne6 {[%clk 0:02:27.4]} 16. Qd3 {[%clk 0:02:36.8]} 16...
Ng6 {[%clk 0:02:21.3]} 17. Rad1 {[%clk 0:02:34.1]} 17... Nef4 {[%clk 0:02:18.3]}
18. Qf3 {[%clk 0:02:32.5]} 18... Qh4 {[%clk 0:02:13.9]} 19. Bf5 {[%clk
0:02:01.4]} 19... Bxf5 {[%clk 0:01:50.2]} 20. Nxf5 {[%clk 0:02:02.3]} 20... Qg5
{[%clk 0:01:50.5]} 21. Ne3 {[%clk 0:01:45.2]} 21... Rad8 {[%clk 0:01:42.9]} 22.
Ne4 {[%clk 0:01:42.8]} 22... Qa5 {[%clk 0:01:37.8]} 23. Nc4 {[%clk 0:01:25.3]}
23... Qxa2 {[%clk 0:01:27.9]} 24. Ncd6 {[%clk 0:01:22.2]} 24... Qxb2 {[%clk
0:01:15.7]} 25. Nf5 {[%clk 0:00:55.5]} 25... Rd5 {[%clk 0:00:57.8]} 26. Ned6
{[%clk 0:00:37.9]} 26... b5 {[%clk 0:00:26.8]} 27. h4 {[%clk 0:00:28.5]} 27...
h5 {[%clk 0:00:20.6]} 28. g4 {[%clk 0:00:16.2]} 28... hxg4 {[%clk 0:00:18.6]}
29. Qxg4 {[%clk 0:00:13.5]} 29... Qb3 {[%clk 0:00:14.2]} 30. Re3 {[%clk
0:00:10.7]} 30... Nh3+ {[%clk 0:00:11.1]} 31. Rxh3 {[%clk 0:00:08.1]} 31... Qc2
{[%clk 0:00:10.1]} 32. h5 {[%clk 0:00:06.5]} 32... Rd8 {[%clk 0:00:08]} 33. hxg6
{[%clk 0:00:06.2]} 33... Rxf5 {[%clk 0:00:06.2]} 34. gxf7+ {[%clk 0:00:05.3]}
34... Kf8 {[%clk 0:00:05.7]} 35. Nxf5 {[%clk 0:00:04.8]} 35... Kxf7 {[%clk
0:00:04.9]} 36. Qxg7+ {[%clk 0:00:04.6]} 36... Ke6 {[%clk 0:00:05.3]} 37. Qe5+
{[%clk 0:00:04.4]} 37... Kd7 {[%clk 0:00:05.2]} 38. Rh7+ {[%clk 0:00:04.4]}
38... Kc8 {[%clk 0:00:05.4]} 39. Qc7# {[%clk 0:00:05.1]} 1-0

[Event "*** Titled Tuesday Blitz"]
[Site "Chess.com"]
[Date "2020.11.03"]
[Round "7"]
[White "ArjunErigaisi2003"]
[Black "Smirnov_Pavel"]
[Result "1/2-1/2"]
[WhiteElo "2984"]
[BlackElo "2848"]
[TimeControl "180+1"]
[EndTime "11:21:04 PST"]
[Termination "Game drawn by repetition"]

1. Nf3 {[%clk 0:02:51.8]} 1... Nf6 {[%clk 0:02:59.6]} 2. c4 {[%clk 0:02:50.7]}
2... e6 {[%clk 0:03:00]} 3. g3 {[%clk 0:02:49.7]} 3... d5 {[%clk 0:03:00.4]} 4.
d4 {[%clk 0:02:50.3]} 4... Be7 {[%clk 0:03:00.5]} 5. Bg2 {[%clk 0:02:50.4]} 5...
O-O {[%clk 0:03:01.2]} 6. O-O {[%clk 0:02:51.3]} 6... c6 {[%clk 0:03:01.7]} 7.
Qc2 {[%clk 0:02:51]} 7... b6 {[%clk 0:03:01.4]} 8. Nbd2 {[%clk 0:02:51.6]} 8...
Bb7 {[%clk 0:03:01.2]} 9. e4 {[%clk 0:02:51.1]} 9... Na6 {[%clk 0:03:01.1]} 10.
b3 {[%clk 0:02:45.5]} 10... Nb4 {[%clk 0:02:58.4]} 11. Qb1 {[%clk 0:02:45.2]}
11... dxe4 {[%clk 0:02:59.1]} 12. Nxe4 {[%clk 0:02:46.1]} 12... c5 {[%clk
0:02:59.6]} 13. Nxf6+ {[%clk 0:02:05.8]} 13... Bxf6 {[%clk 0:03:00.5]} 14. Ba3
{[%clk 0:01:47.1]} 14... Bxf3 {[%clk 0:01:56.4]} 15. Bxf3 {[%clk 0:01:48]} 15...
Qxd4 {[%clk 0:01:56.6]} 16. Bxa8 {[%clk 0:01:28.6]} 16... Qxa1 {[%clk 0:01:55]}
17. Qxa1 {[%clk 0:01:18.1]} 17... Bxa1 {[%clk 0:01:55.9]} 18. Bxb4 {[%clk
0:01:19]} 18... cxb4 {[%clk 0:01:51.2]} 19. Rxa1 {[%clk 0:01:19]} 19... Rxa8
{[%clk 0:01:50.3]} 20. Rd1 {[%clk 0:01:19.9]} 20... a5 {[%clk 0:01:47.2]} 21.
Rd6 {[%clk 0:01:17.3]} 21... Rb8 {[%clk 0:01:47.2]} 22. Kg2 {[%clk 0:01:15.2]}
22... Kf8 {[%clk 0:01:47.2]} 23. Rd7 {[%clk 0:01:15.3]} 23... b5 {[%clk
0:01:43.1]} 24. Ra7 {[%clk 0:01:00.5]} 24... bxc4 {[%clk 0:01:34.8]} 25. bxc4
{[%clk 0:01:01.4]} 25... Rc8 {[%clk 0:01:35.2]} 26. Rxa5 {[%clk 0:01:01.6]}
26... Rxc4 {[%clk 0:01:35.3]} 27. Ra4 {[%clk 0:01:02.2]} 27... Rc2 {[%clk
0:01:19.7]} 28. Rxb4 {[%clk 0:01:02]} 28... Rxa2 {[%clk 0:01:19.7]} 29. Rb8+
{[%clk 0:01:02.7]} 29... Ke7 {[%clk 0:01:19.2]} 30. Rb7+ {[%clk 0:01:03.6]}
30... Kf6 {[%clk 0:01:19.3]} 31. h4 {[%clk 0:01:04.5]} 31... h5 {[%clk
0:01:17.1]} 32. Rb8 {[%clk 0:01:03.5]} 32... g6 {[%clk 0:01:16.7]} 33. Rb5
{[%clk 0:01:04]} 33... e5 {[%clk 0:01:16.5]} 34. Rb7 {[%clk 0:01:03.1]} 34...
Ke6 {[%clk 0:01:16.3]} 35. Rc7 {[%clk 0:01:02.2]} 35... f6 {[%clk 0:01:15.8]}
36. Rb7 {[%clk 0:01:00.8]} 36... Kf5 {[%clk 0:01:15.5]} 37. Rb4 {[%clk 0:01:01]}
37... Rc2 {[%clk 0:01:13.2]} 38. Ra4 {[%clk 0:00:58.8]} 38... Rd2 {[%clk
0:01:12.4]} 39. Kf3 {[%clk 0:00:55.4]} 39... e4+ {[%clk 0:01:06.4]} 40. Ke3
{[%clk 0:00:51.3]} 40... Rd3+ {[%clk 0:01:05.7]} 41. Ke2 {[%clk 0:00:51.8]}
41... Rc3 {[%clk 0:00:51.2]} 42. Ra6 {[%clk 0:00:48.1]} 42... Rc2+ {[%clk
0:00:39.3]} 43. Ke3 {[%clk 0:00:47.3]} 43... Rc3+ {[%clk 0:00:38.4]} 44. Ke2
{[%clk 0:00:47.8]} 44... Rd3 {[%clk 0:00:38.2]} 45. Ra5+ {[%clk 0:00:41]} 45...
Ke6 {[%clk 0:00:37.5]} 46. Ra6+ {[%clk 0:00:40.2]} 46... Ke5 {[%clk 0:00:37.7]}
47. Ra5+ {[%clk 0:00:39.1]} 47... Rd5 {[%clk 0:00:37.7]} 48. Ra8 {[%clk
0:00:39.5]} 48... Kf5 {[%clk 0:00:32.6]} 49. Ra4 {[%clk 0:00:37.5]} 49... Rd6
{[%clk 0:00:29]} 50. Ke3 {[%clk 0:00:36.5]} 50... Rd3+ {[%clk 0:00:27.7]} 51.
Ke2 {[%clk 0:00:37]} 51... Rd6 {[%clk 0:00:20.6]} 52. Ke3 {[%clk 0:00:35.8]}
52... Rd3+ {[%clk 0:00:18.5]} 1/2-1/2

[Event "*** Titled Tuesday Blitz"]
[Site "Chess.com"]
[Date "2020.11.03"]
[Round "7"]
[White "yobdc"]
[Black "PlotnikovPavel"]
[Result "1-0"]
[WhiteElo "2344"]
[BlackElo "2438"]
[TimeControl "180+1"]
[EndTime "11:21:06 PST"]
[Termination "yobdc won by checkmate"]

1. d4 {[%clk 0:03:00.9]} 1... Nf6 {[%clk 0:02:59.2]} 2. Nf3 {[%clk 0:03:00.8]}
2... g6 {[%clk 0:02:59]} 3. Nbd2 {[%clk 0:03:00.6]} 3... Bg7 {[%clk 0:02:54.6]}
4. e4 {[%clk 0:03:00.3]} 4... d6 {[%clk 0:02:54.7]} 5. Bb5+ {[%clk 0:03:00.4]}
5... c6 {[%clk 0:02:54.1]} 6. Bd3 {[%clk 0:03:00.5]} 6... O-O {[%clk 0:02:53.3]}
7. O-O {[%clk 0:03:00.8]} 7... Qc7 {[%clk 0:02:47.7]} 8. Re1 {[%clk 0:03:00]}
8... e5 {[%clk 0:02:46.8]} 9. c3 {[%clk 0:03:00]} 9... b5 {[%clk 0:02:43.6]} 10.
a4 {[%clk 0:02:59]} 10... Bd7 {[%clk 0:02:28.5]} 11. axb5 {[%clk 0:02:44.4]}
11... cxb5 {[%clk 0:02:29.4]} 12. d5 {[%clk 0:02:40.6]} 12... a5 {[%clk
0:02:26.1]} 13. Nb3 {[%clk 0:02:09.4]} 13... a4 {[%clk 0:02:20.6]} 14. Be3
{[%clk 0:02:08.7]} 14... Na6 {[%clk 0:02:17.7]} 15. Nbd2 {[%clk 0:02:04.5]}
15... Nc5 {[%clk 0:02:17.5]} 16. Bc2 {[%clk 0:02:04.4]} 16... Rfb8 {[%clk
0:02:10.5]} 17. h3 {[%clk 0:02:00.4]} 17... Nh5 {[%clk 0:01:59.1]} 18. b3 {[%clk
0:01:50.8]} 18... axb3 {[%clk 0:01:51.4]} 19. Bxb3 {[%clk 0:01:48.4]} 19... Na4
{[%clk 0:01:44.6]} 20. c4 {[%clk 0:01:45]} 20... Nc3 {[%clk 0:01:34.9]} 21. Qc2
{[%clk 0:01:44.6]} 21... Ne2+ {[%clk 0:01:31]} 22. Kh2 {[%clk 0:01:40.4]} 22...
Nef4 {[%clk 0:01:30.2]} 23. c5 {[%clk 0:01:34.8]} 23... Bc8 {[%clk 0:00:50.8]}
24. c6 {[%clk 0:01:28]} 24... f5 {[%clk 0:00:45.2]} 25. Ra2 {[%clk 0:01:23.7]}
25... Rxa2 {[%clk 0:00:44.1]} 26. Qxa2 {[%clk 0:01:23.2]} 26... fxe4 {[%clk
0:00:40.3]} 27. Nxe4 {[%clk 0:01:22.9]} 27... Bf5 {[%clk 0:00:31.1]} 28. Nfd2
{[%clk 0:01:15.9]} 28... Kh8 {[%clk 0:00:22.8]} 29. Qa3 {[%clk 0:00:53.2]} 29...
b4 {[%clk 0:00:19.7]} 30. Qa7 {[%clk 0:00:53.1]} 30... Qc8 {[%clk 0:00:17.7]}
31. Nxd6 {[%clk 0:00:52]} 31... Qf8 {[%clk 0:00:14.2]} 32. Nf7+ {[%clk 0:00:50]}
32... Kg8 {[%clk 0:00:13.8]} 33. d6 {[%clk 0:00:50.3]} 33... Be6 {[%clk
0:00:13.9]} 34. Bxe6 {[%clk 0:00:44.5]} 34... Nxe6 {[%clk 0:00:14.2]} 35. Ng5
{[%clk 0:00:32.3]} 35... Nxg5 {[%clk 0:00:10.3]} 36. Bxg5 {[%clk 0:00:33.2]}
36... Ra8 {[%clk 0:00:10.1]} 37. Qe7 {[%clk 0:00:30.6]} 37... Qxf2 {[%clk
0:00:08.5]} 38. Nf3 {[%clk 0:00:26]} 38... Qg3+ {[%clk 0:00:07.8]} 39. Kh1
{[%clk 0:00:25.7]} 39... Qf2 {[%clk 0:00:03.9]} 40. d7 {[%clk 0:00:24.5]} 40...
Ng3+ {[%clk 0:00:03.1]} 41. Kh2 {[%clk 0:00:24.8]} 41... Nf1+ {[%clk 0:00:03.6]}
42. Rxf1 {[%clk 0:00:25.1]} 42... Qxf1 {[%clk 0:00:04.1]} 43. c7 {[%clk
0:00:24.5]} 43... e4 {[%clk 0:00:02.2]} 44. d8=Q+ {[%clk 0:00:24.2]} 44... Rxd8
{[%clk 0:00:02.4]} 45. cxd8=Q+ {[%clk 0:00:24.5]} 45... Bf8 {[%clk 0:00:03.3]}
46. Qdxf8# {[%clk 0:00:24.6]} 1-0

[Event "*** Titled Tuesday Blitz"]
[Site "Chess.com"]
[Date "2020.11.03"]
[Round "7"]
[White "jaskol95"]
[Black "Oglob71"]
[Result "0-1"]
[WhiteElo "2324"]
[BlackElo "2477"]
[TimeControl "180+1"]
[EndTime "11:21:07 PST"]
[Termination "Oglob71 won by resignation"]

1. d4 {[%clk 0:02:56.2]} 1... Nf6 {[%clk 0:02:56.9]} 2. c4 {[%clk 0:02:55.2]}
2... e6 {[%clk 0:02:57.1]} 3. Nf3 {[%clk 0:02:54.1]} 3... Bb4+ {[%clk
0:02:56.9]} 4. Bd2 {[%clk 0:02:51]} 4... a5 {[%clk 0:02:56.7]} 5. Nc3 {[%clk
0:02:50.9]} 5... b6 {[%clk 0:02:56.7]} 6. a3 {[%clk 0:02:50.1]} 6... Bxc3 {[%clk
0:02:54.7]} 7. Bxc3 {[%clk 0:02:51]} 7... Ne4 {[%clk 0:02:55]} 8. Qc2 {[%clk
0:02:49.6]} 8... Bb7 {[%clk 0:02:55.5]} 9. e3 {[%clk 0:02:49.2]} 9... Nxc3
{[%clk 0:02:52.3]} 10. Qxc3 {[%clk 0:02:49]} 10... d6 {[%clk 0:02:51.9]} 11. d5
{[%clk 0:02:44.3]} 11... e5 {[%clk 0:02:51.1]} 12. Bd3 {[%clk 0:02:42.7]} 12...
Nd7 {[%clk 0:02:51.1]} 13. O-O {[%clk 0:02:38.5]} 13... O-O {[%clk 0:02:49.5]}
14. b4 {[%clk 0:02:38.6]} 14... f5 {[%clk 0:02:47.1]} 15. e4 {[%clk 0:02:34.8]}
15... f4 {[%clk 0:02:43.9]} 16. c5 {[%clk 0:02:22.1]} 16... bxc5 {[%clk
0:02:41]} 17. bxc5 {[%clk 0:02:22.3]} 17... Nxc5 {[%clk 0:02:40.6]} 18. Nxe5
{[%clk 0:01:58.3]} 18... Nxd3 {[%clk 0:02:40.4]} 19. Nxd3 {[%clk 0:01:56.7]}
19... f3 {[%clk 0:02:40.7]} 20. g3 {[%clk 0:01:47.7]} 20... Ba6 {[%clk
0:02:40.5]} 21. Rfd1 {[%clk 0:01:45.1]} 21... Qd7 {[%clk 0:02:37.3]} 22. Ne1
{[%clk 0:01:40.4]} 22... Be2 {[%clk 0:02:36.2]} 23. Rdc1 {[%clk 0:01:37.4]}
23... Rf7 {[%clk 0:02:36.4]} 24. Qc6 {[%clk 0:01:33.3]} 24... Qd8 {[%clk
0:02:36.2]} 25. Rc3 {[%clk 0:01:18]} 25... Ra6 {[%clk 0:02:35]} 26. Qb7 {[%clk
0:01:06.3]} 26... Rb6 {[%clk 0:02:32.1]} 27. Qa7 {[%clk 0:01:06.4]} 27... h5
{[%clk 0:02:27.8]} 28. Rac1 {[%clk 0:01:00.3]} 28... Ra6 {[%clk 0:02:20.3]} 29.
Qb7 {[%clk 0:00:57.4]} 29... Rb6 {[%clk 0:02:20.4]} 30. Qa7 {[%clk 0:00:57.6]}
30... Qg5 {[%clk 0:02:01.3]} 31. Rxc7 {[%clk 0:00:36.5]} 31... Qxc1 {[%clk
0:01:55.8]} 32. Qa8+ {[%clk 0:00:23.6]} 32... Rf8 {[%clk 0:01:55.7]} 33. Qxf8+
{[%clk 0:00:24.1]} 33... Kxf8 {[%clk 0:01:55]} 34. Rxc1 {[%clk 0:00:24.8]} 34...
Ke7 {[%clk 0:01:53.2]} 35. h3 {[%clk 0:00:20.6]} 35... Rb3 {[%clk 0:01:51.4]}
36. Kh2 {[%clk 0:00:20.3]} 36... Rxa3 {[%clk 0:01:51.5]} 37. Rc7+ {[%clk
0:00:19.9]} 37... Kf6 {[%clk 0:01:51.8]} 38. Nc2 {[%clk 0:00:18.7]} 38... Ra4
{[%clk 0:01:43.6]} 39. Ne3 {[%clk 0:00:13.5]} 39... Rxe4 {[%clk 0:01:41.7]} 40.
Ra7 {[%clk 0:00:12.7]} 40... Rxe3 {[%clk 0:01:40.5]} 41. g4 {[%clk 0:00:09.3]}
41... Ra3 {[%clk 0:01:35]} 42. g5+ {[%clk 0:00:08.4]} 42... Kxg5 {[%clk
0:01:35.1]} 43. Rxg7+ {[%clk 0:00:07.9]} 43... Kf5 {[%clk 0:01:35.7]} 44. h4
{[%clk 0:00:07.9]} 44... Ra4 {[%clk 0:01:33.1]} 45. Kh3 {[%clk 0:00:07.8]} 45...
Rg4 {[%clk 0:01:32.2]} 46. Rf7+ {[%clk 0:00:06.6]} 46... Ke5 {[%clk 0:01:32.5]}
47. Re7+ {[%clk 0:00:06.5]} 47... Kxd5 {[%clk 0:01:32.6]} 48. Ra7 {[%clk
0:00:06.6]} 48... a4 {[%clk 0:01:32.4]} 49. Ra5+ {[%clk 0:00:06.1]} 49... Ke6
{[%clk 0:01:32.2]} 50. Rxh5 {[%clk 0:00:05.7]} 50... Rb4 {[%clk 0:01:32.6]} 51.
Ra5 {[%clk 0:00:05.7]} 51... Kf6 {[%clk 0:01:30.2]} 52. h5 {[%clk 0:00:06.1]}
52... Kg7 {[%clk 0:01:21.1]} 53. Ra6 {[%clk 0:00:05.9]} 53... Kh6 {[%clk
0:01:20.4]} 54. Rxd6+ {[%clk 0:00:05.5]} 54... Kxh5 {[%clk 0:01:20.8]} 55. Rd5+
{[%clk 0:00:05.9]} 55... Kg6 {[%clk 0:01:20.7]} 56. Rd6+ {[%clk 0:00:06.2]}
56... Kf5 {[%clk 0:01:20.9]} 57. Rd5+ {[%clk 0:00:06.8]} 57... Ke4 {[%clk
0:01:21.1]} 58. Ra5 {[%clk 0:00:07.7]} 58... Kd3 {[%clk 0:01:21.2]} 59. Kg3
{[%clk 0:00:08.2]} 59... Kc2 {[%clk 0:01:21.5]} 60. Kh2 {[%clk 0:00:07.2]} 60...
Kb2 {[%clk 0:01:21.5]} 61. Kg1 {[%clk 0:00:06.7]} 61... a3 {[%clk 0:01:21.6]}
62. Rh5 {[%clk 0:00:02.7]} 62... a2 {[%clk 0:01:21.1]} 63. Rh4 {[%clk
0:00:03.4]} 63... a1=Q+ {[%clk 0:01:19.7]} 64. Kh2 {[%clk 0:00:03.8]} 64...
Rxh4+ {[%clk 0:01:19.6]} 65. Kg3 {[%clk 0:00:04.5]} 65... Rh3+ {[%clk
0:01:16.9]} 66. Kxh3 {[%clk 0:00:04.1]} 66... Qg1 {[%clk 0:01:16]} 0-1

[Event "*** Titled Tuesday Blitz"]
[Site "Chess.com"]
[Date "2020.11.03"]
[Round "7"]
[White "nocnypako"]
[Black "Fandorine"]
[Result "0-1"]
[WhiteElo "2580"]
[BlackElo "2829"]
[TimeControl "180+1"]
[EndTime "11:21:09 PST"]
[Termination "Fandorine won by checkmate"]

1. d4 {[%clk 0:03:00.9]} 1... Nf6 {[%clk 0:03:00]} 2. c4 {[%clk 0:03:00.8]} 2...
g6 {[%clk 0:02:59.8]} 3. Nc3 {[%clk 0:03:00.8]} 3... Bg7 {[%clk 0:02:59.5]} 4.
e4 {[%clk 0:03:01]} 4... d6 {[%clk 0:02:59.7]} 5. Nf3 {[%clk 0:03:01.4]} 5...
O-O {[%clk 0:02:59.8]} 6. Be2 {[%clk 0:03:02]} 6... e5 {[%clk 0:02:58.2]} 7. O-O
{[%clk 0:03:02.4]} 7... exd4 {[%clk 0:02:58.6]} 8. Nxd4 {[%clk 0:03:02.1]} 8...
Re8 {[%clk 0:02:59]} 9. f3 {[%clk 0:03:02.1]} 9... c6 {[%clk 0:02:58.9]} 10. Kh1
{[%clk 0:03:02.6]} 10... Nbd7 {[%clk 0:02:58.4]} 11. Bg5 {[%clk 0:02:58.5]}
11... h6 {[%clk 0:02:53.8]} 12. Bh4 {[%clk 0:02:56.7]} 12... g5 {[%clk
0:02:30.4]} 13. Bg3 {[%clk 0:02:54.1]} 13... Ne5 {[%clk 0:02:29.9]} 14. Nf5
{[%clk 0:02:50.1]} 14... Bxf5 {[%clk 0:02:29.3]} 15. exf5 {[%clk 0:02:51]} 15...
d5 {[%clk 0:02:26.9]} 16. cxd5 {[%clk 0:02:48.5]} 16... Nxd5 {[%clk 0:02:24.3]}
17. Nxd5 {[%clk 0:02:46.9]} 17... Qxd5 {[%clk 0:02:22.3]} 18. Qxd5 {[%clk
0:02:46]} 18... cxd5 {[%clk 0:02:23.2]} 19. Rac1 {[%clk 0:02:28.8]} 19... Nc6
{[%clk 0:02:21.2]} 20. Bb5 {[%clk 0:02:28]} 20... Bxb2 {[%clk 0:02:20.3]} 21.
Rc2 {[%clk 0:02:26.7]} 21... Bg7 {[%clk 0:02:18.9]} 22. Bxc6 {[%clk 0:02:21.1]}
22... bxc6 {[%clk 0:02:19.1]} 23. Rxc6 {[%clk 0:02:21.9]} 23... d4 {[%clk
0:02:11.6]} 24. f6 {[%clk 0:02:17.4]} 24... Bf8 {[%clk 0:02:09.3]} 25. h4 {[%clk
0:02:17.9]} 25... gxh4 {[%clk 0:01:48]} 26. Bxh4 {[%clk 0:02:14]} 26... Rad8
{[%clk 0:01:48.5]} 27. Rd1 {[%clk 0:02:08.8]} 27... Re2 {[%clk 0:01:38.6]} 28.
Ra6 {[%clk 0:02:01.8]} 28... Rd7 {[%clk 0:01:36.3]} 29. Kg1 {[%clk 0:01:50.9]}
29... Bc5 {[%clk 0:01:29.7]} 30. Kf1 {[%clk 0:01:49]} 30... Rb2 {[%clk
0:01:28.8]} 31. Bf2 {[%clk 0:01:42.3]} 31... Bb6 {[%clk 0:01:17]} 32. Ra4 {[%clk
0:01:37.6]} 32... Rb5 {[%clk 0:00:49.2]} 33. Rc4 {[%clk 0:01:32.8]} 33... Kh7
{[%clk 0:00:47]} 34. Rc2 {[%clk 0:01:17.8]} 34... Kg6 {[%clk 0:00:43.1]} 35. Rc6
{[%clk 0:01:17.6]} 35... Rh5 {[%clk 0:00:34.3]} 36. Kg1 {[%clk 0:00:58]} 36...
Rf5 {[%clk 0:00:33.9]} 37. Bh4 {[%clk 0:00:44.6]} 37... d3+ {[%clk 0:00:29.5]}
38. Kf1 {[%clk 0:00:44.7]} 38... Rh5 {[%clk 0:00:21.6]} 39. g3 {[%clk
0:00:44.9]} 39... Ra5 {[%clk 0:00:20.4]} 40. Rc3 {[%clk 0:00:28.5]} 40... Rad5
{[%clk 0:00:16.8]} 41. g4 {[%clk 0:00:24]} 41... h5 {[%clk 0:00:17]} 42. Kg2
{[%clk 0:00:19.2]} 42... hxg4 {[%clk 0:00:16.8]} 43. fxg4 {[%clk 0:00:20.1]}
43... d2 {[%clk 0:00:15.5]} 44. Kf3 {[%clk 0:00:16.5]} 44... R7d6 {[%clk
0:00:15.8]} 45. Bg3 {[%clk 0:00:14.9]} 45... Rxf6+ {[%clk 0:00:14.7]} 46. Ke4
{[%clk 0:00:15.3]} 46... Rd4+ {[%clk 0:00:13.6]} 47. Ke5 {[%clk 0:00:15.5]}
47... Re6# {[%clk 0:00:13.1]} 0-1